Department Family,Entity,Date,Expense Type,Expense Area,Supplier,Transaction Number,Amount,VAT Registration Number
Department of Health,Chelsea and Westminster Hospital NHS Foundation Trust,02/12/2010,ELECTRICTY,Facilities Management,SCOTTISH AND SOUTHERN ENERGY PLC,6252507,"148,532.59",
Department of Health,Chelsea and Westminster Hospital NHS Foundation Trust,02/12/2010,RECHARGE ACCOUNTS,Chelsea & Westminster NHS Foundation Holding,NHS SUPPLY CHAIN,6250920,"104,680.17",
Department of Health,Chelsea and Westminster Hospital NHS Foundation Trust,02/12/2010,STOCK,Chelsea & Westminster NHS Foundation Holding,BRISTOL-MYERS SQUIBB PHARMACEUTICALS LIMITED,6251472,"60,655.67",
Department of Health,Chelsea and Westminster Hospital NHS Foundation Trust,02/12/2010,STOCK,Chelsea & Westminster NHS Foundation Holding,GILEAD SCIENCES LTD.,6251507,"268,582.56",
Department of Health,Chelsea and Westminster Hospital NHS Foundation Trust,02/12/2010,STOCK,Chelsea & Westminster NHS Foundation Holding,JANSSEN-CILAG LTD,6251485,"79,452.48",
Department of Health,Chelsea and Westminster Hospital NHS Foundation Trust,06/12/2010,AUC,Chelsea & Westminster NHS Foundation Holding,RUSSELL CAWBERRY LTD,6254801,"71,632.44",
Department of Health,Chelsea and Westminster Hospital NHS Foundation Trust,06/12/2010,OLIMPIC CARS,Facilities Management,OLYMPIC (SOUTH) LTD,6254209,"64,527.51",
Department of Health,Chelsea and Westminster Hospital NHS Foundation Trust,06/12/2010,SOFTWARE LICENCES & MAINTENANCE,Finance ,CAPGEMINI UK LTD,6255540,"22,500.00",
Department of Health,Chelsea and Westminster Hospital NHS Foundation Trust,07/12/2010,CLEANING CONTRACT,Facilities Management,ISS MEDICLEAN LTD.,6250953,"200,803.05",
Department of Health,Chelsea and Westminster Hospital NHS Foundation Trust,07/12/2010,CONTRACT CATERING - FIXED CHARGE,Facilities Management,ISS MEDICLEAN LTD.,6250953,"184,872.76",
Department of Health,Chelsea and Westminster Hospital NHS Foundation Trust,07/12/2010,CONTRACT MANAGEMENT,Facilities Management,ISS MEDICLEAN LTD.,6250953,"87,208.90",
Department of Health,Chelsea and Westminster Hospital NHS Foundation Trust,07/12/2010,DRUGS,HIV/GUM,HEALTHCARE AT HOME LIMITED,6252889,"134,811.06",
Department of Health,Chelsea and Westminster Hospital NHS Foundation Trust,07/12/2010,ELECTRICTY,Facilities Management,SCOTTISH AND SOUTHERN ENERGY PLC,6255858,"148,532.59",
Department of Health,Chelsea and Westminster Hospital NHS Foundation Trust,07/12/2010,INCOME FROM CATERING SERVICES,Facilities Management,ISS MEDICLEAN LTD.,6250953,"-38,424.08",
Department of Health,Chelsea and Westminster Hospital NHS Foundation Trust,07/12/2010,LAUNDRY & LINEN CONTRACT - FIXED,Facilities Management,ISS MEDICLEAN LTD.,6250953,"55,038.01",
Department of Health,Chelsea and Westminster Hospital NHS Foundation Trust,07/12/2010,PORTERING CONTRACT,Facilities Management,ISS MEDICLEAN LTD.,6250953,"84,580.00"
Department of Health,Chelsea and Westminster Hospital NHS Foundation Trust,07/12/2010,SECURITY CONTRACT,Facilities Management,ISS MEDICLEAN LTD.,6250953,"39,825.14"
Department of Health,Chelsea and Westminster Hospital NHS Foundation Trust,07/12/2010,SECURITY CONTRACT - MHU,Facilities Management,ISS MEDICLEAN LTD.,6250953,"13,020.24"
Department of Health,Chelsea and Westminster Hospital NHS Foundation Trust,07/12/2010,SECURITY CONTRACT - MHU,Facilities Management,ISS MEDICLEAN LTD.,6255200,"-24,827.48"
Department of Health,Chelsea and Westminster Hospital NHS Foundation Trust,07/12/2010,STOCK,Chelsea & Westminster NHS Foundation Holding,GILEAD SCIENCES LTD.,6252377,"109,623.55"
Department of Health,Chelsea and Westminster Hospital NHS Foundation Trust,07/12/2010,STOCK,Chelsea & Westminster NHS Foundation Holding,GILEAD SCIENCES LTD.,6252378,"265,794.40"
Department of Health,Chelsea and Westminster Hospital NHS Foundation Trust,07/12/2010,WASTE (CLINICAL) DISPOSAL CONTRACT,Facilities Management,ISS MEDICLEAN LTD.,6250953,"30,883.60"
Department of Health,Chelsea and Westminster Hospital NHS Foundation Trust,07/12/2010,WASTE MHU,Facilities Management,ISS MEDICLEAN LTD.,6250953,"2,913.50"
Department of Health,Chelsea and Westminster Hospital NHS Foundation Trust,09/12/2010,CONSULTANCY CHARGES,Finance ,LINEA GROUP LIMITED,6256147,"22,680.00"
Department of Health,Chelsea and Westminster Hospital NHS Foundation Trust,09/12/2010,PROSTHETICS,Surgery,ALGOTEC LTD,6256108,"26,210.73"
Department of Health,Chelsea and Westminster Hospital NHS Foundation Trust,09/12/2010,PROSTHETICS,Surgery,ALGOTEC LTD,6256109,"39,957.05"
Department of Health,Chelsea and Westminster Hospital NHS Foundation Trust,09/12/2010,RECHARGE ACCOUNTS,Chelsea & Westminster NHS Foundation Holding,NHS SUPPLY CHAIN,6252491,"122,785.37"
Department of Health,Chelsea and Westminster Hospital NHS Foundation Trust,09/12/2010,STOCK,Chelsea & Westminster NHS Foundation Holding,BRISTOL-MYERS SQUIBB PHARMACEUTICALS LIMITED,6254021,"91,420.53"
Department of Health,Chelsea and Westminster Hospital NHS Foundation Trust,10/12/2010,ELECTRICTY,Facilities Management,SCOTTISH AND SOUTHERN ENERGY PLC,6256927,"-148,532.59"
Department of Health,Chelsea and Westminster Hospital NHS Foundation Trust,13/12/2010,ESTATES SERVICE CHARGE - CARILLION,Facilities Management,NORLAND MANAGED SERVICES,6253371,"200,315.00"
Department of Health,Chelsea and Westminster Hospital NHS Foundation Trust,13/12/2010,GAS,Facilities Management,TOTAL GAS & POWER LTD,6253936,"42,090.29"
Department of Health,Chelsea and Westminster Hospital NHS Foundation Trust,13/12/2010,GUM CLINIC OVERHEADS,HIV/GUM,IMPERIAL COLLEGE HEALTHCARE NHS TRUST,6248873,"364,864.06"
Department of Health,Chelsea and Westminster Hospital NHS Foundation Trust,13/12/2010,NATIONAL BLOOD SERVICE CONTRACT,Service Level Agreements,NHS BLOOD AND TRANSPLANT,6253045,"81,912.12"
Department of Health,Chelsea and Westminster Hospital NHS Foundation Trust,13/12/2010,TELECOMMUNICATIONS SLA,Facilities Management,IMPERIAL COLLEGE HEALTHCARE NHS TRUST,6252541,"47,334.80"
Department of Health,Chelsea and Westminster Hospital NHS Foundation Trust,14/12/2010,STOCK,Chelsea & Westminster NHS Foundation Holding,BRISTOL-MYERS SQUIBB PHARMACEUTICALS LIMITED,6254965,"50,802.26"
Department of Health,Chelsea and Westminster Hospital NHS Foundation Trust,14/12/2010,STOCK,Chelsea & Westminster NHS Foundation Holding,GILEAD SCIENCES LTD.,6255012,"59,680.96"
Department of Health,Chelsea and Westminster Hospital NHS Foundation Trust,14/12/2010,STOCK,Chelsea & Westminster NHS Foundation Holding,JANSSEN-CILAG LTD,6255075,"49,671.64"
Department of Health,Chelsea and Westminster Hospital NHS Foundation Trust,14/12/2010,STOCK,Chelsea & Westminster NHS Foundation Holding,JANSSEN-CILAG LTD,6256711,"146,516.18"
Department of Health,Chelsea and Westminster Hospital NHS Foundation Trust,16/12/2010,DRUGS,HIV/GUM,HEALTHCARE AT HOME LIMITED,6254332,"147,265.66"
Department of Health,Chelsea and Westminster Hospital NHS Foundation Trust,16/12/2010,PATHOLOGY SLA (HHT),Anaesthetics,BARTS & THE LONDON NHS TRUST,6249712,"49,296.00"
Department of Health,Chelsea and Westminster Hospital NHS Foundation Trust,16/12/2010,RECHARGE ACCOUNTS,Chelsea & Westminster NHS Foundation Holding,NHS SUPPLY CHAIN,6246224,"104,648.54"
Department of Health,Chelsea and Westminster Hospital NHS Foundation Trust,16/12/2010,RENT & ACCOMMODATION SERVICEWS,HIV/GUM,AMAS LTD,6252920,"168,572.69"
Department of Health,Chelsea and Westminster Hospital NHS Foundation Trust,16/12/2010,STOCK,Chelsea & Westminster NHS Foundation Holding,GILEAD SCIENCES LTD.,6255011,"284,721.07"
Department of Health,Chelsea and Westminster Hospital NHS Foundation Trust,16/12/2010,STOCK,Chelsea & Westminster NHS Foundation Holding,ST GEORGE'S HEALTHCARE NHS TRUST..,6251670,"25,451.75"
Department of Health,Chelsea and Westminster Hospital NHS Foundation Trust,20/12/2010,DRUGS,HIV/GUM,HEALTHCARE AT HOME LIMITED,6256762,"124,846.91"
Department of Health,Chelsea and Westminster Hospital NHS Foundation Trust,20/12/2010,NON DOMESTIC RATES AND COUNCIL TAXES,Facilities Management,ROYAL BOROUGH OF KENSINGTON & CHELSEA.....,6257831,"135,517.52"
Department of Health,Chelsea and Westminster Hospital NHS Foundation Trust,20/12/2010,PREPAYMENTS,Chelsea & Westminster NHS Foundation Holding,ROYAL BOROUGH OF KENSINGTON & CHELSEA.....,6257831,"27,103.48"
Department of Health,Chelsea and Westminster Hospital NHS Foundation Trust,20/12/2010,PRINTING & STATIONERY (INC. COM),Surgery,CENTRAL AND NORTH WEST LONDON  FOUNDATION TRUST,6254817,"69,037.00"
Department of Health,Chelsea and Westminster Hospital NHS Foundation Trust,20/12/2010,PRINTING & STATIONERY (INC. COM),Surgery,CENTRAL AND NORTH WEST LONDON  FOUNDATION TRUST,6254818,"40,039.00"
Department of Health,Chelsea and Westminster Hospital NHS Foundation Trust,21/12/2010,AUC,Chelsea & Westminster NHS Foundation Holding,ENSIGNA CONSTRUCTION LTD,6256165,"76,688.61"
Department of Health,Chelsea and Westminster Hospital NHS Foundation Trust,21/12/2010,AUC,Chelsea & Westminster NHS Foundation Holding,NORLAND MANAGED SERVICES,6255339,"25,821.42"
Department of Health,Chelsea and Westminster Hospital NHS Foundation Trust,21/12/2010,ESTATES SERVICE CHARGE - CARILLION,Facilities Management,NORLAND MANAGED SERVICES,6256432,"200,315.00"
Department of Health,Chelsea and Westminster Hospital NHS Foundation Trust,21/12/2010,PATHOLOGY SLA (HHT),Service Level Agreements,IMPERIAL COLLEGE HEALTHCARE NHS TRUST,6256411,"1,102,536.00"
Department of Health,Chelsea and Westminster Hospital NHS Foundation Trust,21/12/2010,STOCK,Chelsea & Westminster NHS Foundation Holding,ALLIANCE HEALTHCARE (DISTRIBUTION)LTD,6255134,"48,122.36"
Department of Health,Chelsea and Westminster Hospital NHS Foundation Trust,21/12/2010,STOCK,Chelsea & Westminster NHS Foundation Holding,BRISTOL-MYERS SQUIBB PHARMACEUTICALS LIMITED,6256649,"36,697.18"
Department of Health,Chelsea and Westminster Hospital NHS Foundation Trust,21/12/2010,STOCK,Chelsea & Westminster NHS Foundation Holding,GILEAD SCIENCES LTD.,6256625,"199,246.59"
Department of Health,Chelsea and Westminster Hospital NHS Foundation Trust,21/12/2010,STOCK,Chelsea & Westminster NHS Foundation Holding,JANSSEN-CILAG LTD,6256616,"45,671.97"
Department of Health,Chelsea and Westminster Hospital NHS Foundation Trust,23/12/2010,AUC,Chelsea & Westminster NHS Foundation Holding,LONGCROSS CONSTRUCTION LTD,6258298,"84,931.36"
Department of Health,Chelsea and Westminster Hospital NHS Foundation Trust,23/12/2010,CLEANING CONTRACT,Facilities Management,ISS MEDICLEAN LTD.,6255750,"200,803.05"
Department of Health,Chelsea and Westminster Hospital NHS Foundation Trust,23/12/2010,CLINICAL LITIGATION,Governance & Corporate Affairs,NHS LITIGATION AUTHORITY,6258744,"512,392.00"
Department of Health,Chelsea and Westminster Hospital NHS Foundation Trust,23/12/2010,CONTRACT CATERING - FIXED CHARGE,Facilities Management,ISS MEDICLEAN LTD.,6255750,"184,872.76"
Department of Health,Chelsea and Westminster Hospital NHS Foundation Trust,23/12/2010,CONTRACT MANAGEMENT,Facilities Management,ISS MEDICLEAN LTD.,6255750,"87,208.90"
Department of Health,Chelsea and Westminster Hospital NHS Foundation Trust,23/12/2010,INCOME FROM CATERING SERVICES,Facilities Management,ISS MEDICLEAN LTD.,6255750,"-38,424.08"
Department of Health,Chelsea and Westminster Hospital NHS Foundation Trust,23/12/2010,LAUNDRY & LINEN CONTRACT - FIXED,Facilities Management,ISS MEDICLEAN LTD.,6255750,"55,038.01"
Department of Health,Chelsea and Westminster Hospital NHS Foundation Trust,23/12/2010,PORTERING CONTRACT,Facilities Management,ISS MEDICLEAN LTD.,6255750,"84,580.00"
Department of Health,Chelsea and Westminster Hospital NHS Foundation Trust,23/12/2010,SECURITY CONTRACT,Facilities Management,ISS MEDICLEAN LTD.,6255750,"39,825.14"
Department of Health,Chelsea and Westminster Hospital NHS Foundation Trust,23/12/2010,WASTE (CLINICAL) DISPOSAL CONTRACT,Facilities Management,ISS MEDICLEAN LTD.,6255750,"30,883.60"
Department of Health,Chelsea and Westminster Hospital NHS Foundation Trust,23/12/2010,WASTE MHU,Facilities Management,ISS MEDICLEAN LTD.,6255750,"2,913.50"
Department of Health,Chelsea and Westminster Hospital NHS Foundation Trust,29/12/2010,ADDITIONAL SUPPORT (CCN),Facilities Management,ISS MEDICLEAN LTD.,6255749,"31,712.74"
Department of Health,Chelsea and Westminster Hospital NHS Foundation Trust,29/12/2010,DRUGS,HIV/GUM,HEALTHCARE AT HOME LIMITED,6256764,"172,540.14"
Department of Health,Chelsea and Westminster Hospital NHS Foundation Trust,29/12/2010,HOSPITALITY,Service Level Agreements,MEDICAL ILLUSTRATION UK LTD,6256898,"35,416.67"
Department of Health,Chelsea and Westminster Hospital NHS Foundation Trust,29/12/2010,MSSE,Anaesthetics,DIAGMED HEALTHCARE LTD,6256732,"49,594.40"
Department of Health,Chelsea and Westminster Hospital NHS Foundation Trust,29/12/2010,PATHOLOGY SLA (HHT),Anaesthetics,BARTS & THE LONDON NHS TRUST,6255741,"49,296.00"
Department of Health,Chelsea and Westminster Hospital NHS Foundation Trust,29/12/2010,SOFTWARE LICENCES & MAINTENANCE,IC&T & EPR,BRIGHTSTRAND INTERNATIONAL LTD,6258518,"37,666.98"
Department of Health,Chelsea and Westminster Hospital NHS Foundation Trust,29/12/2010,STOCK,Chelsea & Westminster NHS Foundation Holding,ABBOTT LABORATORIES LTD,6256914,"28,534.29"
Department of Health,Chelsea and Westminster Hospital NHS Foundation Trust,29/12/2010,STOCK,Chelsea & Westminster NHS Foundation Holding,HEALTHCARE AT HOME LIMITED,6257165,"72,930.00"
Department of Health,Chelsea and Westminster Hospital NHS Foundation Trust,29/12/2010,STOCK,Chelsea & Westminster NHS Foundation Holding,HEALTHCARE AT HOME LIMITED,6257170,"42,900.00"
Department of Health,Chelsea and Westminster Hospital NHS Foundation Trust,29/12/2010,STOCK,Chelsea & Westminster NHS Foundation Holding,JANSSEN-CILAG LTD,6258698,"135,538.33"
Department of Health,Chelsea and Westminster Hospital NHS Foundation Trust,30/12/2010,AUC,Chelsea & Westminster NHS Foundation Holding,LONGCROSS CONSTRUCTION LTD,6259040,"46,407.90"
Department of Health,Chelsea and Westminster Hospital NHS Foundation Trust,30/12/2010,ELECTRICTY,Facilities Management,SCOTTISH AND SOUTHERN ENERGY PLC,6258116,"144,959.17"
Department of Health,Chelsea and Westminster Hospital NHS Foundation Trust,30/12/2010,RECHARGE ACCOUNTS,Chelsea & Westminster NHS Foundation Holding,NHS SUPPLY CHAIN,6253938,"100,367.52"
Department of Health,Chelsea and Westminster Hospital NHS Foundation Trust,30/12/2010,SOFTWARE LICENCES & MAINTENANCE,IC&T & EPR,BT GLOBAL SERVICES,6258804,"46,439.00"
Department of Health,Chelsea and Westminster Hospital NHS Foundation Trust,30/12/2010,STOCK,Chelsea & Westminster NHS Foundation Holding,BRISTOL-MYERS SQUIBB PHARMACEUTICALS LIMITED,6257965,"58,706.85"
Department of Health,Chelsea and Westminster Hospital NHS Foundation Trust,30/12/2010,STOCK,Chelsea & Westminster NHS Foundation Holding,GILEAD SCIENCES LTD.,6256627,"115,834.91"
Department of Health,Chelsea and Westminster Hospital NHS Foundation Trust,30/12/2010,STOCK,Chelsea & Westminster NHS Foundation Holding,GILEAD SCIENCES LTD.,6256630,"209,262.04"
Department of Health,Chelsea and Westminster Hospital NHS Foundation Trust,30/12/2010,STOCK,Chelsea & Westminster NHS Foundation Holding,GILEAD SCIENCES LTD.,6258874,"297,917.35"
Department of Health,Chelsea and Westminster Hospital NHS Foundation Trust,30/12/2010,STOCK,Chelsea & Westminster NHS Foundation Holding,JANSSEN-CILAG LTD,6258699,"128,825.38"
Department of Health,Chelsea and Westminster Hospital NHS Foundation Trust,30/12/2010,STOCK,Chelsea & Westminster NHS Foundation Holding,ROCHE PRODUCTS LTD,6258705,"28,202.02"
